[Event "GER-ch Youth U14 2020"]
[Site "Willingen"]
[Date "2020.10.24"]
[Round "7.12"]
[White "Tovmasyan, Minas"]
[Black "Schwartz, Oliver"]
[Result "1/2-1/2"]
[ECO "E84"]
[WhiteElo "1658"]
[BlackElo "1794"]
[Annotator "NA RC"]
[PlyCount "73"]
[EventDate "2020.10.20"]
[EventType "swiss"]
[EventRounds "7"]
[EventCountry "GER"]
[SourceTitle "playchess.com"]
[Source "ChessBase"]
[SourceQuality "1"]
[TimeControl "40/5400+30:1800+30"]

1. d4 {[%emt 0:00:00]} Nf6 {[%emt 0:00:00]} 2. c4 {[%emt 0:00:00]} g6 {[%emt 0:00:00]} 3. Nc3 {[%emt 0:00:00]} Bg7 {[%emt 0:00:00]} 4. e4 {[%emt 0:00:00]} d6 {[%emt 0:00:01]} 5. f3 {[%emt 0:00:02]} O-O {[%emt 0:00:08]} 6. Be3 {[%emt 0:00:20]} Nc6 {[%emt 0:00:15]} 7. Nge2 {[%emt 0:08:47]} a6 {[%emt 0:00:44]} 8. Qd2 {[%emt 0:09:50]} Rb8 {[%emt 0:00:18]} 9. Nc1 {[%emt 0:05:54]} e5 {[%emt 0:04:32]} 10. Nb3 {[%emt 0:04:16]} Nh5 {[%emt 0:14:06]} 11. d5 {[%emt 0:05:37]} Ne7 {[%emt 0:05:10]} 12. O-O-O {[%emt 0:07:40]} b5 {[%emt 0:06:42]} 13. cxb5 {[%emt 0:14:59]} axb5 {[%emt 0:00:18]} 14. Bxb5 {[%emt 0:01:34]} Ra8 {[%emt 0:05:49]} 15. a4 {[%emt 0:09:58]} Ba6 {[%emt 0:07:23]} 16. Kc2 {[%emt 0:02:29]} Qc8 {[%emt 0:13:50]} 17. Ra1 {[%emt 0:06:53]} Rd8 {[%emt 0:04:47]} 18. Na5 {[%emt 0:07:55]} Bb7 {[%emt 0:02:36]} 19. Nc6 {[%emt 0:05:36]} Bxc6 {[%emt 0:01:27]} 20. dxc6 {[%emt 0:01:15]} Qe6 {[%emt 0:04:40]} 21. Nd5 {[%emt 0:02:06]} Nxd5 {[%emt 0:01:38]} 22. Qxd5 {[%emt 0:00:51]} Nf6 {[%emt 0:01:30]} 23. Qxe6 {[%emt 0:01:04]} fxe6 {[%emt 0:00:06]} 24. Bg5 {[%emt 0:03:47]} d5 {[%emt 0:01:57]} 25. Bxf6 {[%emt 0:00:49]} Bxf6 {[%emt 0:00:07]} 26. Rhd1 {[%emt 0:00:20]} Be7 {[%emt 0:03:18]} 27. Rd3 {[%emt 0:00:42]} Bb4 {[%emt 0:05:24]} 28. Rad1 {[%emt 0:00:30]} d4 {[%emt 0:01:09]} 29. Kb3 {[%emt 0:00:33]} Be7 {[%emt 0:02:53]} 30. Kc4 {[%emt 0:00:33]} Rdb8 {[%emt 0:00:56]} 31. b3 {[%emt 0:00:27]} Rb6 {[%emt 0:01:27]} 32. Rf1 {[%emt 0:00:38]} Rab8 {[%emt 0:00:41]} 33. Rd2 {[%emt 0:00:24]} Bg5 {[%emt 0:01:44]} 34. Rdd1 {[%emt 0:00:11]} Be3 {[%emt 0:01:38]} 35. g3 {[%emt 0:00:23]} g5 {[%emt 0:00:33]} 36. Kd3 {[%emt 0:00:59]} Kf7 {[%emt 0:01:50]} 37. Ra1 {[%emt 0:00:34]} 1/2-1/2

[Event "GER-ch Youth U14 2020"]
[Site "Willingen"]
[Date "2020.10.24"]
[Round "7.15"]
[White "Pfeffer, Samuel"]
[Black "Spriestersbach, Kai"]
[Result "1-0"]
[ECO "E42"]
[WhiteElo "1427"]
[BlackElo "1863"]
[Annotator "NA RC"]
[PlyCount "55"]
[EventDate "2020.10.20"]
[EventType "swiss"]
[EventRounds "7"]
[EventCountry "GER"]
[SourceTitle "playchess.com"]
[Source "ChessBase"]
[SourceQuality "1"]
[TimeControl "40/5400+30:1800+30"]

{[%evp 9,45,0,17,32767,32767,0,17,14,0,32767,-8,11,51,0,68,47,50,47,116,72,32767,76,70,64,72,32767,32767,32767,32767,32767,344,32767,32767,32767,32767,32767,32767,241]} 1. d4 {[%emt 0:00:00]} Nf6 {[%emt 0:00:00]} 2. c4 {[%emt 0:01:05]} e6 {[%emt 0:00:00]} 3. Nc3 {[%emt 0:01:43]} Bb4 {[%emt 0:00:00]} 4. e3 {[%emt 0:01:16]} c5 {[%emt 0:00:13]} 5. Nge2 {[%emt 0:01:09]} b6 {[%emt 0:00:10]} 6. a3 {[%emt 0:01:52]} Ba5 {[%emt 0:00:05]} 7. Bd2 {[%emt 0:00:43]} O-O {[%emt 0:00:19]} 8. Rb1 {[%emt 0:01:14]} Na6 {[%emt 0:00:24]} 9. Nf4 {[%emt 0:04:21] E42: Nimzo-Indian: Rubinstein: 4...c5 5 Ne2.} Bb7 {[%emt 0:04:28]} 10. Bd3 {[%emt 0:01:42]} d6 {[%emt 0:08:11] [#]} 11. Nh5 $146 {[%emt 0:04:23]} ({Predecessor:} 11. O-O e5 12. Nfe2 exd4 13. exd4 d5 14. Bg5 Bxc3 15. bxc3 cxd4 16. cxd4 dxc4 17. Bxc4 {½-½ (27) Sebenik,M (2511)-Farid,F (2396) Biel 2013}) 11... g6 {[%emt 0:14:31]} ({Wrong is} 11... Bxg2 $2 12. Rg1 $18) 12. Nxf6+ {[%emt 0:03:40]} Qxf6 {[%emt 0:00:17]} 13. Qg4 {[%emt 0:02:36]} e5 {[%emt 0:06:15]} (13... Bxc3 $14 14. Bxc3 Qe7) 14. d5 {[%emt 0:01:44]} Bc8 {[%emt 0:04:46]} 15. Qg3 {[%emt 0:01:42]} Qe7 {[%emt 0:00:06]} 16. h4 {[%emt 0:02:27]} Bd7 {[%emt 0:03:04]} 17. h5 {[%emt 0:01:16]} Kg7 {[%emt 0:00:10]} 18. e4 {[%emt 0:01:44]} Rh8 {[%emt 0:02:22]} 19. h6+ {[%emt 0:06:42]} Kg8 {[%emt 0:00:44]} 20. O-O {[%emt 0:01:02]} f6 {[%emt 0:05:05]} 21. f4 {[%emt 0:01:41]} Rf8 {[%emt 0:01:50]} 22. f5 {[%emt 0:07:11]} g5 {[%emt 0:04:45]} 23. Bxg5 $18 {[%emt 0:02:36]} fxg5 {[%emt 0:02:42]} 24. f6 {[%emt 0:00:43]} Qf7 {[%emt 0:00:12]} 25. Qxg5+ {[%emt 0:00:19]} Qg6 {[%emt 0:00:15]} 26. f7+ {[%emt 0:00:40]} Rxf7 {[%emt 0:00:07]} 27. Qd8+ {[%emt 0:00:31]} Rf8 {[%emt 0:00:07]} 28. Qxf8# 1-0

[Event "GER-ch Youth U14 2020"]
[Site "Willingen"]
[Date "2020.10.24"]
[Round "7.16"]
[White "Klühs, Gustaf"]
[Black "Mimkes, Antal"]
[Result "1-0"]
[ECO "C55"]
[WhiteElo "1827"]
[BlackElo "1567"]
[Annotator "NA RC"]
[PlyCount "57"]
[EventDate "2020.10.20"]
[EventType "swiss"]
[EventRounds "7"]
[EventCountry "GER"]
[SourceTitle "playchess.com"]
[Source "ChessBase"]
[SourceQuality "1"]
[TimeControl "40/5400+30:1800+30"]

1. e4 {[%emt 0:00:00]} e5 {[%emt 0:00:00]} 2. Nf3 {[%emt 0:00:00]} Nc6 {[%emt 0:00:08]} 3. Bc4 {[%emt 0:00:00]} Nf6 {[%emt 0:00:32]} 4. d4 {[%emt 0:00:00]} exd4 {[%emt 0:00:31]} 5. O-O {[%emt 0:00:19]} d6 {[%emt 0:03:48]} 6. Nxd4 {[%emt 0:36:22]} Be7 {[%emt 0:04:17]} 7. Nc3 {[%emt 0:01:58]} O-O {[%emt 0:02:30]} 8. h3 {[%emt 0:07:09]} Ne5 {[%emt 0:02:01]} 9. Be2 {[%emt 0:01:00]} c6 {[%emt 0:07:33] C50: Hungarian Defence and Giuoco Pianissimo.} 10. Be3 {[%emt 0:03:32]} Qc7 {[%emt 0:01:50]} 11. f4 {[%emt 0:16:44]} Ng6 {[%emt 0:01:03]} 12. Qe1 {[%emt 0:01:49] [#]} b5 $146 {[%emt 0:04:03]} ({Predecessor:} 12... Re8 13. Bf3 Bd7 14. Qg3 Bd8 15. h4 h5 16. f5 Ne5 17. Nde2 Neg4 18. Bxg4 Nxg4 {1-0 (33) Auvray,J (1960)-Anamba Onana,M (1680) France 2009}) 13. a3 {[%emt 0:03:19]} a6 {[%emt 0:02:05]} 14. Bf3 {[%emt 0:06:33]} c5 {[%emt 0:05:52]} 15. Nf5 {[%emt 0:00:24]} b4 {[%emt 0:03:59]} 16. Ne2 {[%emt 0:06:34]} Rb8 {[%emt 0:03:01]} 17. Neg3 {[%emt 0:01:11]} Bd7 {[%emt 0:03:37]} ({Better is} 17... Re8 $14) 18. Qd2 {[%emt 0:02:04]} Bb5 {[%emt 0:02:14]} 19. Rfd1 {[%emt 0:00:21]} Rfd8 {[%emt 0:01:01]} 20. axb4 {[%emt 0:02:16]} cxb4 {[%emt 0:01:21]} 21. Ne2 {[%emt 0:01:28]} (21. Qf2 $18) 21... d5 $16 {[%emt 0:02:34]} 22. exd5 {[%emt 0:01:44]} Nxd5 {[%emt 0:04:05]} 23. Bxd5 {[%emt 0:00:26]} Bc4 {[%emt 0:03:41]} 24. Qd4 {[%emt 0:01:56]} Ne5 {[%emt 0:04:31]} 25. Qxe5 {[%emt 0:01:15]} Qxe5 {[%emt 0:00:32]} 26. fxe5 {[%emt 0:00:09]} Bxe2 {[%emt 0:00:17]} 27. Nxe7+ {[%emt 0:00:03]} Kf8 {[%emt 0:00:05]} 28. Nc6 {[%emt 0:00:37]} Bxd1 {[%emt 0:00:19]} 29. Rxd1 {[%emt 0:00:06]} 1-0

[Event "GER-ch Youth U14 2020"]
[Site "Willingen"]
[Date "2020.10.24"]
[Round "7.17"]
[White "Sallandt, Frido"]
[Black "Ehrig, Leon Chris"]
[Result "1-0"]
[ECO "B13"]
[WhiteElo "1770"]
[BlackElo "1718"]
[Annotator "NA RC"]
[PlyCount "72"]
[EventDate "2020.10.20"]
[EventType "swiss"]
[EventRounds "7"]
[EventCountry "GER"]
[SourceTitle "playchess.com"]
[Source "ChessBase"]
[SourceQuality "1"]
[TimeControl "40/5400+30:1800+30"]

1. e4 {[%emt 0:00:00]} c6 {[%emt 0:00:00]} 2. d4 {[%emt 0:00:00]} d5 {[%emt 0:00:00]} 3. exd5 {[%emt 0:00:00]} cxd5 {[%emt 0:00:00]} 4. Bd3 {[%emt 0:00:07]} Nc6 {[%emt 0:00:00]} 5. c3 {[%emt 0:00:18]} Qc7 {[%emt 0:00:01]} 6. Ne2 {[%emt 0:00:07]} Bg4 {[%emt 0:00:10]} 7. O-O {[%emt 0:00:13]} e5 {[%emt 0:00:36]} 8. f3 {[%emt 0:03:04]} Bd7 {[%emt 0:00:15]} 9. dxe5 {[%emt 0:11:55]} Nxe5 {[%emt 0:04:41]} 10. Bf4 {[%emt 0:03:09]} Bd6 {[%emt 0:00:16]} 11. Bg3 {[%emt 0:01:58]} Ne7 {[%emt 0:03:42]} 12. Na3 {[%emt 0:04:24]} O-O {[%emt 0:00:45]} 13. Kh1 {[%emt 0:20:49]} N7g6 {[%emt 0:06:43]} 14. Bxg6 {[%emt 0:05:59]} Nxg6 {[%emt 0:00:24]} 15. Qxd5 {[%emt 0:01:03]} Bxg3 {[%emt 0:00:35]} 16. Nxg3 {[%emt 0:04:41]} Bc6 {[%emt 0:03:25]} 17. Qb3 {[%emt 0:02:20]} Rad8 {[%emt 0:02:13]} 18. Rad1 {[%emt 0:03:23]} Nh4 {[%emt 0:12:31]} 19. Nb5 {[%emt 0:05:14]} Qe5 {[%emt 0:16:33]} 20. Nd4 {[%emt 0:01:36]} Qg5 {[%emt 0:13:25]} 21. Nxc6 {[%emt 0:04:41]} bxc6 {[%emt 0:01:33]} 22. Qc4 {[%emt 0:01:02]} Ng6 {[%emt 0:07:17]} 23. Qxc6 {[%emt 0:03:19]} Rd2 {[%emt 0:01:41]} 24. f4 {[%emt 0:04:35]} Qd8 {[%emt 0:00:18]} 25. Qf3 {[%emt 0:00:42]} Re8 {[%emt 0:05:19]} 26. h3 {[%emt 0:02:01]} h6 {[%emt 0:02:47]} 27. Rxd2 {[%emt 0:00:42]} Qxd2 {[%emt 0:00:23]} 28. Qf2 {[%emt 0:00:20]} Qd3 {[%emt 0:01:02]} 29. Kh2 {[%emt 0:01:07]} a5 {[%emt 0:05:22]} 30. f5 {[%emt 0:02:09]} Ne5 {[%emt 0:06:16]} 31. Qf4 {[%emt 0:02:23]} f6 {[%emt 0:01:03]} 32. Qa4 {[%emt 0:01:45]} Rb8 {[%emt 0:03:02]} 33. Rf2 {[%emt 0:03:25]} h5 {[%emt 0:01:33]} 34. Nxh5 {[%emt 0:01:21]} Rc8 {[%emt 0:00:17]} 35. Qb3+ {[%emt 0:00:38]} Kh7 {[%emt 0:00:34]} 36. Qb7 {[%emt 0:00:22]} Rg8 {[%emt 0:00:34]} 1-0

[Event "GER-ch Youth U14 2020"]
[Site "Willingen"]
[Date "2020.10.24"]
[Round "7.18"]
[White "Niemann, Leon"]
[Black "Kort, Felix"]
[Result "1/2-1/2"]
[ECO "C50"]
[WhiteElo "1880"]
[BlackElo "1823"]
[Annotator "NA RC"]
[PlyCount "119"]
[EventDate "2020.10.20"]
[EventType "swiss"]
[EventRounds "7"]
[EventCountry "GER"]
[SourceTitle "playchess.com"]
[Source "ChessBase"]
[SourceQuality "1"]
[TimeControl "40/5400+30:1800+30"]

1. e4 {[%emt 0:00:00]} e5 {[%emt 0:00:00]} 2. Nf3 {[%emt 0:00:00]} Nc6 {[%emt 0:00:00]} 3. Bc4 {[%emt 0:00:00]} Bc5 {[%emt 0:00:00]} 4. O-O {[%emt 0:00:00]} Nf6 {[%emt 0:00:05]} 5. d3 {[%emt 0:00:08]} d6 {[%emt 0:00:16]} 6. c3 {[%emt 0:00:17]} a6 {[%emt 0:01:15]} 7. Bb3 {[%emt 0:00:06] 7.a4 is the hot move. Played by Levon Aronian in September 2020.} Ba7 {[%emt 0:00:18]} 8. Nbd2 {[%emt 0:00:37]} h6 {[%emt 0:00:35] C54: Giuoco Piano: 4 c3 Nf6, main lines with 5 d4 and 5 d3.} 9. Re1 {[%emt 0:12:30]} g5 {[%emt 0:01:43]} 10. Nc4 {[%emt 0:18:16]} g4 {[%emt 0:01:18]} 11. Nfd2 {[%emt 0:02:04]} h5 $1 {[%emt 0:05:37]} 12. d4 {[%emt 0:04:29] [#]} b5 {[%emt 0:20:19] [#]} ({Much weaker is} 12... exd4 $6 13. e5 $11) (12... h4 $1 $17 13. Nf1 g3 14. hxg3 hxg3) 13. dxe5 $2 $146 {[%emt 0:08:35]} (13. Na3 $11) ({Predecessor:} 13. Ne3 exd4 14. cxd4 Nxd4 15. Nf5 Nxf5 16. exf5+ Kf8 17. Nf1 h4 18. Bg5 Rh5 19. Qd2 Bxf2+ 20. Qxf2 Rxg5 21. Qxh4 {0-1 (55) Turgut,A (2269)-Gordievsky,D (2559) chess.com INT 2020}) 13... dxe5 {[%emt 0:23:23]} 14. Ne3 {[%emt 0:01:55]} Ne7 {[%emt 0:10:56]} 15. Nd5 {[%emt 0:13:45]} Ng6 {[%emt 0:10:40]} 16. Nf1 {[%emt 0:05:00]} c6 {[%emt 0:07:22]} 17. Nxf6+ {[%emt 0:12:30]} Qxf6 {[%emt 0:00:39]} 18. Be3 {[%emt 0:01:17]} Nf4 {[%emt 0:07:24]} 19. a4 {[%emt 0:08:59]} h4 {[%emt 0:04:28]} 20. Bxa7 {[%emt 0:05:34]} Rxa7 {[%emt 0:00:10]} 21. Ne3 {[%emt 0:00:11]} Qg6 {[%emt 0:02:20]} 22. axb5 {[%emt 0:02:21]} cxb5 {[%emt 0:00:45]} 23. Bd5 {[%emt 0:01:31]} g3 {[%emt 0:00:56]} 24. Qf3 {[%emt 0:00:44]} Rg8 {[%emt 0:00:45]} (24... gxf2+ $15 25. Kxf2 Nd3+ 26. Kg1 Nxe1 27. Rxe1 Rc7) 25. fxg3 {[%emt 0:00:51]} hxg3 {[%emt 0:00:08]} 26. hxg3 {[%emt 0:00:35]} Qxg3 {[%emt 0:00:20]} 27. Qxg3 {[%emt 0:00:14]} Rxg3 {[%emt 0:00:08]} 28. Kf2 {[%emt 0:00:22]} Rg5 {[%emt 0:00:49]} 29. Red1 {[%emt 0:00:54]} Ke7 {[%emt 0:01:04]} 30. Bc6 {[%emt 0:00:37]} Rc7 {[%emt 0:00:38]} 31. Nd5+ {[%emt 0:00:24]} Nxd5 {[%emt 0:00:06]} 32. Bxd5 {[%emt 0:00:03]} Rg6 {[%emt 0:00:40]} 33. Rh1 {[%emt 0:01:01]} Bb7 {[%emt 0:00:40]} 34. Rhd1 {[%emt 0:00:37]} Rd6 {[%emt 0:00:34]} 35. Bxb7 {[%emt 0:00:30]} Rxd1 {[%emt 0:00:24]} 36. Rxd1 {[%emt 0:00:08]} Rxb7 {[%emt 0:00:09]} 37. Rd5 {[%emt 0:00:23]} Ke6 {[%emt 0:00:19]} 38. Rd8 {[%emt 0:00:34]} Rb6 {[%emt 0:01:08]} 39. Ra8 {[%emt 0:00:29]} Rd6 {[%emt 0:00:21]} 40. Kf3 {[%emt 0:00:53]} Rd3+ {[%emt 0:00:40]} 41. Kg4 {[%emt 0:30:32]} Rd6 {[%emt 0:02:26]} 42. Kg5 {[%emt 0:00:00]} f6+ {[%emt 0:15:56]} 43. Kg6 {[%emt 0:00:00]} Rd2 {[%emt 0:02:04]} 44. Re8+ {[%emt 0:00:00]} Kd7 {[%emt 0:00:41]} 45. Kf7 {[%emt 0:00:00]} Rxg2 {[%emt 0:06:29]} 46. Re7+ {[%emt 0:00:00]} Kd6 {[%emt 0:01:13]} 47. Re6+ {[%emt 0:00:00]} Kd7 {[%emt 0:00:56]} 48. Kxf6 {[%emt 0:00:00]} Rxb2 {[%emt 0:00:52]} 49. Rxa6 {[%emt 0:00:40]} Rb3 {[%emt 0:01:09]} 50. Kxe5 {[%emt 0:02:07]} Rxc3 {[%emt 0:00:25]} 51. Rd6+ {[%emt 0:00:34]} Ke7 {[%emt 0:00:27]} 52. Rb6 {[%emt 0:00:17]} Rc5+ {[%emt 0:01:09]} 53. Kd4 {[%emt 0:00:24]} Rh5 {[%emt 0:00:29]} 54. e5 {[%emt 0:00:07]} Rh1 {[%emt 0:00:36]} 55. Rxb5 {[%emt 0:01:05]} Rd1+ {[%emt 0:00:33]} 56. Ke4 {[%emt 0:00:53]} Re1+ {[%emt 0:00:07]} 57. Kd5 {[%emt 0:00:07]} Rd1+ {[%emt 0:00:05]} 58. Kc6 $11 {[%emt 0:00:48]} Ke6 {[%emt 0:01:00]} 59. Rc5 {[%emt 0:00:14]} Re1 {[%emt 0:00:37]} 60. Ra5 {[%emt 0:01:00]} 1/2-1/2

[Event "GER-ch Youth U14 2020"]
[Site "Willingen"]
[Date "2020.10.24"]
[Round "7.19"]
[White "Raasch, Hauke"]
[Black "Freude, Max"]
[Result "1/2-1/2"]
[ECO "A45"]
[WhiteElo "1676"]
[BlackElo "1850"]
[Annotator "NA RC"]
[PlyCount "80"]
[EventDate "2020.10.20"]
[EventType "swiss"]
[EventRounds "7"]
[EventCountry "GER"]
[SourceTitle "playchess.com"]
[Source "ChessBase"]
[SourceQuality "1"]
[TimeControl "40/5400+30:1800+30"]

1. d4 {[%emt 0:00:00]} Nf6 {[%emt 0:00:00]} 2. Bf4 {[%emt 0:00:00]} d5 {[%emt 0:00:00]} 3. e3 {[%emt 0:00:06]} c5 {[%emt 0:00:00]} 4. c3 {[%emt 0:00:16]} Nc6 {[%emt 0:00:00]} 5. Nf3 {[%emt 0:00:08]} Qb6 {[%emt 0:00:00]} 6. Qb3 {[%emt 0:00:07]} c4 {[%emt 0:00:00]} 7. Qxb6 {[%emt 0:01:39]} axb6 {[%emt 0:00:10]} 8. Nbd2 {[%emt 0:00:08]} e6 {[%emt 0:03:17] D02: 1 d4 d5 2 Nf3 sidelines, including 2...Nf6 3 g3 and 2...Nf6 3 Bf4.} 9. Be2 {[%emt 0:00:09]} b5 {[%emt 0:00:28]} 10. b4 {[%emt 0:11:00] [#]} Bd7 $146 {[%emt 0:20:16]} ({Predecessor:} 10... Ra3 11. Nb1 Rxc3 12. Nxc3 Bxb4 13. O-O Bxc3 14. Rac1 Ba5 15. a3 Bd7 16. Ne1 Ne4 {0-1 (48) Medeuf,J (1863)-Warner,D (2204) Schoelcher 2013}) 11. O-O {[%emt 0:07:09]} Be7 {[%emt 0:05:57]} 12. a3 {[%emt 0:02:29]} O-O {[%emt 0:01:48]} 13. Ne5 {[%emt 0:00:43]} Ra7 {[%emt 0:12:39]} 14. Nxc6 {[%emt 0:00:37]} Bxc6 {[%emt 0:00:32]} 15. Ra2 {[%emt 0:00:20]} Nd7 {[%emt 0:03:46]} 16. Rfa1 {[%emt 0:01:21]} f6 {[%emt 0:02:21]} 17. Bg4 {[%emt 0:02:05]} Kf7 {[%emt 0:03:23]} 18. Bg3 {[%emt 0:04:28]} g6 {[%emt 0:04:04]} 19. f4 {[%emt 0:05:36]} Rfa8 {[%emt 0:08:36]} 20. h3 {[%emt 0:03:26]} Nb6 {[%emt 0:02:16]} 21. Nb1 {[%emt 0:01:12]} Bd6 {[%emt 0:03:25]} 22. Kh2 {[%emt 0:01:31]} Na4 {[%emt 0:02:31]} 23. Bd1 {[%emt 0:01:04]} Re8 {[%emt 0:01:46]} 24. Bxa4 {[%emt 0:03:02]} Rxa4 {[%emt 0:01:01]} 25. Rf2 {[%emt 0:01:04]} Kg7 {[%emt 0:01:36]} 26. Raa2 {[%emt 0:03:49]} Raa8 {[%emt 0:01:17]} 27. Rf1 {[%emt 0:02:18]} Rad8 {[%emt 0:03:09]} 28. Raf2 {[%emt 0:00:56]} Rd7 {[%emt 0:00:29]} 29. Nd2 {[%emt 0:01:30]} e5 {[%emt 0:10:15]} 30. fxe5 {[%emt 0:13:52]} fxe5 {[%emt 0:00:21]} 31. Rf6 {[%emt 0:08:42]} Bc7 $11 {[%emt 0:02:53]} 32. R6f2 {[%emt 0:05:47]} exd4 {[%emt 0:01:47]} 33. exd4 {[%emt 0:00:29]} Bxg3+ {[%emt 0:00:39]} 34. Kxg3 {[%emt 0:00:08]} Re3+ {[%emt 0:00:29]} 35. Rf3 {[%emt 0:00:08]} Rde7 {[%emt 0:00:59]} 36. Rxe3 {[%emt 0:00:07]} Rxe3+ {[%emt 0:00:06]} 37. Rf3 {[%emt 0:00:05]} Re1 {[%emt 0:01:00]} 38. Rf1 {[%emt 0:00:09]} Re3+ {[%emt 0:00:58]} 39. Rf3 {[%emt 0:00:05]} Re1 {[%emt 0:01:13]} 40. Rf1 {[%emt 0:00:05]} Re3+ {[%emt 0:00:16]} 1/2-1/2

[Event "GER-ch Youth U14 2020"]
[Site "Willingen"]
[Date "2020.10.24"]
[Round "7.20"]
[White "Englert, Luca"]
[Black "Weidenhöfer, Max"]
[Result "1-0"]
[ECO "B19"]
[WhiteElo "1530"]
[BlackElo "1897"]
[Annotator "NA RC"]
[PlyCount "101"]
[EventDate "2020.10.20"]
[EventType "swiss"]
[EventRounds "7"]
[EventCountry "GER"]
[SourceTitle "playchess.com"]
[Source "ChessBase"]
[SourceQuality "1"]
[TimeControl "40/5400+30:1800+30"]

1. e4 {[%emt 0:00:00]} c6 {[%emt 0:00:00]} 2. d4 {[%emt 0:00:00]} d5 {[%emt 0:00:00]} 3. Nc3 {[%emt 0:00:00]} dxe4 {[%emt 0:00:00]} 4. Nxe4 {[%emt 0:00:00]} Bf5 {[%emt 0:00:00]} 5. Ng3 {[%emt 0:00:00]} Bg6 {[%emt 0:00:00]} 6. Nf3 {[%emt 0:00:00]} Nd7 {[%emt 0:00:00]} 7. h4 {[%emt 0:00:00]} h6 {[%emt 0:00:03]} 8. h5 {[%emt 0:00:03]} Bh7 {[%emt 0:00:03]} 9. Bd3 {[%emt 0:00:04]} Bxd3 {[%emt 0:00:04]} 10. Qxd3 {[%emt 0:00:05]} e6 {[%emt 0:00:04]} 11. Bf4 {[%emt 0:00:13]} Qa5+ {[%emt 0:00:25]} 12. Bd2 {[%emt 0:00:20]} Qc7 {[%emt 0:00:06]} 13. O-O-O {[%emt 0:00:05]} Ngf6 {[%emt 0:00:15]} 14. Ne4 {[%emt 0:00:11]} Nxe4 {[%emt 0:00:09]} 15. Qxe4 {[%emt 0:00:04]} Nf6 {[%emt 0:00:08]} 16. Qd3 {[%emt 0:01:27]} Bd6 {[%emt 0:02:36]} 17. Kb1 {[%emt 0:00:13]} O-O-O {[%emt 0:00:56]} 18. c4 {[%emt 0:00:06]} Kb8 {[%emt 0:02:36]} 19. Bc3 {[%emt 0:03:20]} Ka8 {[%emt 0:06:07]} 20. Qe2 {[%emt 0:01:27]} Rhe8 {[%emt 0:06:39]} 21. Ne5 {[%emt 0:00:40]} Re7 {[%emt 0:06:30]} 22. f4 {[%emt 0:01:09]} Ne8 {[%emt 0:15:14]} 23. Rh3 {[%emt 0:04:55]} Bxe5 {[%emt 0:22:44]} 24. dxe5 {[%emt 0:00:34]} Red7 {[%emt 0:00:35]} 25. Rhd3 {[%emt 0:00:12]} Kb8 {[%emt 0:01:03]} 26. Kc2 {[%emt 0:00:54]} Kc8 {[%emt 0:01:29]} 27. Bb4 {[%emt 0:00:55]} c5 {[%emt 0:02:26]} 28. Rxd7 {[%emt 0:00:49]} Rxd7 {[%emt 0:00:09]} 29. Rxd7 {[%emt 0:00:04]} Kxd7 {[%emt 0:00:11]} 30. Qd3+ {[%emt 0:00:07]} Ke7 {[%emt 0:02:22]} 31. Be1 {[%emt 0:00:55]} Qc6 {[%emt 0:02:41]} 32. Bh4+ {[%emt 0:01:42]} Kf8 {[%emt 0:00:01]} 33. g3 {[%emt 0:00:47]} Kg8 {[%emt 0:02:20]} 34. b3 {[%emt 0:01:40]} a6 {[%emt 0:05:51]} 35. a4 {[%emt 0:03:28]} Kh8 {[%emt 0:13:15]} 36. a5 {[%emt 0:04:06]} Kg8 {[%emt 0:06:33]} 37. Qd1 {[%emt 0:02:39]} Qg2+ {[%emt 0:02:04]} 38. Kc3 {[%emt 0:00:24]} Qc6 {[%emt 0:00:44]} 39. Be7 {[%emt 0:01:38]} Qc7 {[%emt 0:02:29]} ({Better is} 39... f6) 40. Qd8 {[%emt 0:01:09]} Qc6 {[%emt 0:00:36]} 41. Bxc5 {[%emt 0:31:07]} Qxc5 {[%emt 0:08:05]} 42. Qxe8+ {[%emt 0:00:00]} Kh7 {[%emt 0:00:08]} 43. Qxf7 {[%emt 0:00:00]} Qe3+ {[%emt 0:00:35]} 44. Kb4 {[%emt 0:00:00]} Qd2+ {[%emt 0:03:17]} 45. Kc5 {[%emt 0:00:00]} Qxa5+ {[%emt 0:00:53]} 46. Kd6 {[%emt 0:00:00]} Qb6+ {[%emt 0:01:03]} 47. Ke7 {[%emt 0:00:00]} Qxb3 {[%emt 0:00:48]} 48. Qg6+ {[%emt 0:00:00]} Kg8 {[%emt 0:01:26]} 49. Qxe6+ {[%emt 0:00:00]} Kh8 {[%emt 0:00:25]} 50. Kf7 {[%emt 0:00:00]} Qxg3 {[%emt 0:02:31]} 51. Qe8+ {[%emt 0:00:00]} 1-0